[Event "Late-Titled-Tuesday-Blitz-April-23-2024"]
[Site "Chess.com"]
[Date "2024.04.23"]
[Round "6"]
[White "IngOscarArdila"]
[Black "NM_Koval"]
[Result "1-0"]
[WhiteElo "2264"]
[BlackElo "2159"]
[TimeControl "180+1"]
[EndTime "15:04:50 PDT"]
[Termination "IngOscarArdila won by checkmate"]

1. d3 {[%clk 0:03:00.5]} 1... d5 {[%clk 0:02:58.9]} 2. Nd2 {[%clk 0:03:01.4]}
2... e5 {[%clk 0:02:58]} 3. e4 {[%clk 0:03:02.3]} 3... Nf6 {[%clk 0:02:57.9]} 4.
Ngf3 {[%clk 0:03:02.3]} 4... c6 {[%clk 0:02:58.2]} 5. Be2 {[%clk 0:03:02.7]}
5... Bd6 {[%clk 0:02:56.7]} 6. O-O {[%clk 0:03:02.7]} 6... h6 {[%clk 0:02:57]}
7. c3 {[%clk 0:03:03.3]} 7... O-O {[%clk 0:02:56.6]} 8. Qc2 {[%clk 0:03:03.8]}
8... Be6 {[%clk 0:02:55.1]} 9. Re1 {[%clk 0:03:02.8]} 9... Nbd7 {[%clk
0:02:55.5]} 10. Nf1 {[%clk 0:03:03.1]} 10... Qc7 {[%clk 0:02:55.6]} 11. Ng3
{[%clk 0:03:02.9]} 11... Rae8 {[%clk 0:02:55.5]} 12. b3 {[%clk 0:03:01.5]} 12...
dxe4 {[%clk 0:02:54.5]} 13. Nxe4 {[%clk 0:03:00.8]} 13... Nxe4 {[%clk
0:02:53.7]} 14. dxe4 {[%clk 0:03:01.7]} 14... Kh7 {[%clk 0:02:46.7]} 15. Be3
{[%clk 0:03:01.2]} 15... g5 {[%clk 0:02:43.1]} 16. a4 {[%clk 0:02:59.7]} 16...
Bc5 {[%clk 0:02:37.3]} 17. Bxc5 {[%clk 0:02:56.9]} 17... Nxc5 {[%clk 0:02:36.3]}
18. b4 {[%clk 0:02:57.5]} 18... Nd7 {[%clk 0:02:34.2]} 19. Red1 {[%clk
0:02:54.7]} 19... Rd8 {[%clk 0:02:33]} 20. Nd2 {[%clk 0:02:49.9]} 20... a5
{[%clk 0:02:31.7]} 21. Bc4 {[%clk 0:02:48.7]} 21... Bg4 {[%clk 0:02:24.9]} 22.
f3 {[%clk 0:02:48.1]} 22... Bh5 {[%clk 0:02:24.9]} 23. Nf1 {[%clk 0:02:46.1]}
23... axb4 {[%clk 0:02:23.8]} 24. cxb4 {[%clk 0:02:46.5]} 24... Qb6+ {[%clk
0:02:24.4]} 25. Kh1 {[%clk 0:02:45.8]} 25... Qxb4 {[%clk 0:02:24.3]} 26. Rab1
{[%clk 0:02:45.4]} 26... Qc5 {[%clk 0:02:24]} 27. Rxb7 {[%clk 0:02:40.6]} 27...
Nb6 {[%clk 0:02:23.1]} 28. Bb3 {[%clk 0:02:25.5]} 28... Rd4 {[%clk 0:02:12.2]}
29. Ng3 {[%clk 0:02:22.1]} 29... Rxd1+ {[%clk 0:02:08.5]} 30. Qxd1 {[%clk
0:02:21.8]} 30... Bg6 {[%clk 0:02:08.2]} 31. Nf5 {[%clk 0:02:09.9]} 31... Bxf5
{[%clk 0:02:04.8]} 32. exf5 {[%clk 0:02:10.8]} 32... Kg7 {[%clk 0:02:04.3]} 33.
h4 {[%clk 0:02:07.4]} 33... Qf2 {[%clk 0:02:01.3]} 34. f6+ {[%clk 0:02:02.9]}
34... Kxf6 {[%clk 0:01:58.4]} 35. hxg5+ {[%clk 0:02:01.7]} 35... hxg5 {[%clk
0:01:57.3]} 36. Qd6+ {[%clk 0:01:57.9]} 36... Kf5 {[%clk 0:01:52.7]} 37. Qd3+
{[%clk 0:01:51.6]} 37... Kf4 {[%clk 0:01:51.9]} 38. Qe4+ {[%clk 0:01:50.5]}
38... Kg3 {[%clk 0:01:50.4]} 39. Qg4# {[%clk 0:01:50.6]} 1-0

[Event "Late-Titled-Tuesday-Blitz-April-23-2024"]
[Site "Chess.com"]
[Date "2024.04.23"]
[Round "6"]
[White "SmirnovTimofey2000"]
[Black "Arteler"]
[Result "0-1"]
[WhiteElo "1967"]
[BlackElo "2283"]
[TimeControl "180+1"]
[EndTime "15:05:06 PDT"]
[Termination "Arteler won by resignation"]

1. d4 {[%clk 0:03:00.9]} 1... d5 {[%clk 0:02:53.8]} 2. Bf4 {[%clk 0:03:00.6]}
2... c5 {[%clk 0:02:49.1]} 3. c3 {[%clk 0:03:00.6]} 3... cxd4 {[%clk 0:02:31.3]}
4. cxd4 {[%clk 0:02:59.4]} 4... Nf6 {[%clk 0:02:28.9]} 5. Nc3 {[%clk 0:02:57.5]}
5... e6 {[%clk 0:02:22.4]} 6. e3 {[%clk 0:02:57.4]} 6... Bb4 {[%clk 0:02:21.9]}
7. Nf3 {[%clk 0:02:54.8]} 7... O-O {[%clk 0:02:17.7]} 8. Bd3 {[%clk 0:02:52.7]}
8... Ne4 {[%clk 0:02:11.3]} 9. Qc2 {[%clk 0:02:47.3]} 9... Nc6 {[%clk
0:01:56.3]} 10. Bxe4 {[%clk 0:02:38.6]} 10... dxe4 {[%clk 0:01:46.4]} 11. Qxe4
{[%clk 0:02:39.5]} 11... f5 {[%clk 0:01:37.5]} 12. Qc2 {[%clk 0:02:33.3]} 12...
Ne7 {[%clk 0:01:25.5]} 13. O-O {[%clk 0:02:21.4]} 13... Bxc3 {[%clk 0:01:17.6]}
14. bxc3 {[%clk 0:02:21.1]} 14... Nd5 {[%clk 0:01:17.8]} 15. Bg3 {[%clk
0:02:17]} 15... b6 {[%clk 0:01:15.1]} 16. c4 {[%clk 0:02:10.9]} 16... Nf6 {[%clk
0:01:14.5]} 17. c5 {[%clk 0:02:04.1]} 17... bxc5 {[%clk 0:01:04.5]} 18. Qxc5
{[%clk 0:02:03.8]} 18... Ne4 {[%clk 0:01:04.4]} 19. Be5 {[%clk 0:01:57.6]} 19...
Nxc5 {[%clk 0:01:02.6]} 0-1

[Event "Late-Titled-Tuesday-Blitz-April-23-2024"]
[Site "Chess.com"]
[Date "2024.04.23"]
[Round "6"]
[White "Levanzovsky"]
[Black "titomagno_64"]
[Result "0-1"]
[WhiteElo "2497"]
[BlackElo "2322"]
[TimeControl "180+1"]
[EndTime "15:05:24 PDT"]
[Termination "titomagno_64 won by resignation"]

1. d4 {[%clk 0:03:00]} 1... Nf6 {[%clk 0:02:58.4]} 2. c4 {[%clk 0:03:00.4]} 2...
g6 {[%clk 0:02:58.6]} 3. Nc3 {[%clk 0:03:00.6]} 3... d5 {[%clk 0:02:59.3]} 4.
cxd5 {[%clk 0:02:55.1]} 4... Nxd5 {[%clk 0:03:00.2]} 5. e4 {[%clk 0:02:56]} 5...
Nxc3 {[%clk 0:02:59.9]} 6. bxc3 {[%clk 0:02:56.9]} 6... Bg7 {[%clk 0:03:00.2]}
7. Be3 {[%clk 0:02:57.8]} 7... c5 {[%clk 0:02:59.4]} 8. Ne2 {[%clk 0:02:57.6]}
8... O-O {[%clk 0:02:44.5]} 9. g3 {[%clk 0:02:56.8]} 9... Nc6 {[%clk 0:02:39.8]}
10. Bg2 {[%clk 0:02:49.1]} 10... Bf5 {[%clk 0:02:39.2]} 11. exf5 {[%clk
0:02:47.8]} 11... gxf5 {[%clk 0:02:39.3]} 12. Bxc6 {[%clk 0:02:44.7]} 12... bxc6
{[%clk 0:02:37.9]} 13. dxc5 {[%clk 0:02:44.1]} 13... Qa5 {[%clk 0:02:32.8]} 14.
O-O {[%clk 0:02:41.9]} 14... Rab8 {[%clk 0:02:20.1]} 15. Qc2 {[%clk 0:02:39.5]}
15... e6 {[%clk 0:02:12.6]} 16. Rab1 {[%clk 0:02:34.6]} 16... Qa6 {[%clk
0:02:12.1]} 17. f4 {[%clk 0:02:12.3]} 17... Qc4 {[%clk 0:02:10.2]} 18. Bd4
{[%clk 0:02:06.7]} 18... Bxd4+ {[%clk 0:02:00.2]} 19. Nxd4 {[%clk 0:02:07.6]}
19... Qxc5 {[%clk 0:02:00.8]} 20. Rxb8 {[%clk 0:02:00]} 20... Rxb8 {[%clk
0:02:01.7]} 21. Rb1 {[%clk 0:02:00.4]} 21... Rxb1+ {[%clk 0:01:59.2]} 22. Qxb1
{[%clk 0:01:59.3]} 22... Qxc3 {[%clk 0:01:59.9]} 23. Qd1 {[%clk 0:01:45.8]}
23... Qe3+ {[%clk 0:01:52.5]} 24. Kf1 {[%clk 0:01:44.2]} 24... c5 {[%clk
0:01:44.4]} 25. Nf3 {[%clk 0:01:44.5]} 25... h6 {[%clk 0:01:31.4]} 26. Qe2
{[%clk 0:01:41.3]} 26... Qc1+ {[%clk 0:01:22.9]} 27. Kg2 {[%clk 0:01:41.7]}
27... c4 {[%clk 0:01:20.5]} 28. Ne5 {[%clk 0:01:36.4]} 28... c3 {[%clk
0:01:19.5]} 29. Qb5 {[%clk 0:01:37.1]} 29... Qb2+ {[%clk 0:01:15.2]} 0-1

[Event "Late-Titled-Tuesday-Blitz-April-23-2024"]
[Site "Chess.com"]
[Date "2024.04.23"]
[Round "6"]
[White "kingofthenil"]
[Black "Zura_19"]
[Result "1-0"]
[WhiteElo "2795"]
[BlackElo "2596"]
[TimeControl "180+1"]
[EndTime "15:05:42 PDT"]
[Termination "kingofthenil won by resignation"]

1. e4 {[%clk 0:02:44.1]} 1... c6 {[%clk 0:02:59.3]} 2. c4 {[%clk 0:02:44]} 2...
d5 {[%clk 0:02:58.5]} 3. cxd5 {[%clk 0:02:44.9]} 3... cxd5 {[%clk 0:02:59.1]} 4.
exd5 {[%clk 0:02:45.8]} 4... Nf6 {[%clk 0:02:59.2]} 5. Nc3 {[%clk 0:02:46.7]}
5... g6 {[%clk 0:02:59.7]} 6. Nf3 {[%clk 0:02:47.6]} 6... Bg7 {[%clk 0:03:00.2]}
7. Bc4 {[%clk 0:02:48.1]} 7... O-O {[%clk 0:02:57.3]} 8. O-O {[%clk 0:02:46.8]}
8... Nbd7 {[%clk 0:02:47.9]} 9. d3 {[%clk 0:02:43.8]} 9... Nb6 {[%clk
0:02:47.2]} 10. Qb3 {[%clk 0:02:42.7]} 10... Bf5 {[%clk 0:02:30]} 11. Re1 {[%clk
0:02:37.8]} 11... Nfd7 {[%clk 0:02:26.3]} 12. Bg5 {[%clk 0:02:28.9]} 12... Re8
{[%clk 0:02:16]} 13. d6 {[%clk 0:02:24.3]} 13... Nxc4 {[%clk 0:01:46.1]} 14.
dxe7 {[%clk 0:02:24]} 14... Qa5 {[%clk 0:01:30.9]} 15. dxc4 {[%clk 0:02:21.6]}
15... Be6 {[%clk 0:01:25.3]} 16. Nd5 {[%clk 0:02:17.7]} 16... b5 {[%clk
0:01:18.4]} 17. Bd2 {[%clk 0:02:10.4]} 17... bxc4 {[%clk 0:01:15.2]} 18. Bxa5
{[%clk 0:02:09.7]} 18... cxb3 {[%clk 0:01:15.5]} 19. Nc7 {[%clk 0:02:10.6]}
19... bxa2 {[%clk 0:01:10.5]} 20. Nxa8 {[%clk 0:02:10]} 20... Rxa8 {[%clk
0:00:51.4]} 21. Bd8 {[%clk 0:02:09.2]} 21... Nf6 {[%clk 0:00:47.9]} 22. Rxe6
{[%clk 0:02:10.1]} 22... fxe6 {[%clk 0:00:47.5]} 23. Rxa2 {[%clk 0:02:11]} 23...
Ne8 {[%clk 0:00:45.6]} 24. Ng5 {[%clk 0:02:08.7]} 24... Rc8 {[%clk 0:00:28.9]}
25. g3 {[%clk 0:02:08.4]} 25... Rc2 {[%clk 0:00:27.9]} 26. Nxe6 {[%clk
0:02:07.7]} 26... Bxb2 {[%clk 0:00:24.6]} 27. Rxa7 {[%clk 0:02:04.2]} 27... Bd4
{[%clk 0:00:24]} 28. Nxd4 {[%clk 0:02:03.7]} 1-0

[Event "Late-Titled-Tuesday-Blitz-April-23-2024"]
[Site "Chess.com"]
[Date "2024.04.23"]
[Round "6"]
[White "Onischuk_V"]
[Black "AljoschaFeuerstack"]
[Result "1-0"]
[WhiteElo "2842"]
[BlackElo "2639"]
[TimeControl "180+1"]
[EndTime "15:05:46 PDT"]
[Termination "Onischuk_V won by resignation"]

1. e4 {[%clk 0:03:00.9]} 1... c6 {[%clk 0:02:59.5]} 2. d4 {[%clk 0:03:00.6]}
2... d5 {[%clk 0:03:00.1]} 3. Nc3 {[%clk 0:03:01.2]} 3... a6 {[%clk 0:02:59.9]}
4. Nf3 {[%clk 0:02:55.8]} 4... Bg4 {[%clk 0:02:55.4]} 5. h3 {[%clk 0:02:55.4]}
5... Bxf3 {[%clk 0:02:55]} 6. Qxf3 {[%clk 0:02:55.1]} 6... e6 {[%clk 0:02:52.7]}
7. Bd2 {[%clk 0:02:52.3]} 7... dxe4 {[%clk 0:02:47.1]} 8. Nxe4 {[%clk
0:02:51.8]} 8... Qxd4 {[%clk 0:02:43.7]} 9. O-O-O {[%clk 0:02:50.5]} 9... Qa4
{[%clk 0:01:54.5]} 10. Kb1 {[%clk 0:02:40.1]} 10... Nd7 {[%clk 0:01:47.4]} 11.
Bc3 {[%clk 0:02:39.7]} 11... O-O-O {[%clk 0:01:28.9]} 12. b3 {[%clk 0:02:33.6]}
12... Qa3 {[%clk 0:01:29.2]} 13. Qxf7 {[%clk 0:02:32.2]} 13... e5 {[%clk
0:00:22.7]} 14. Bc4 {[%clk 0:02:20]} 14... Ngf6 {[%clk 0:00:23.1]} 15. Nxf6
{[%clk 0:02:16]} 15... gxf6 {[%clk 0:00:24]} 16. Be6 {[%clk 0:01:46.5]} 16...
Qe7 {[%clk 0:00:23]} 17. Qxe7 {[%clk 0:01:46.3]} 17... Bxe7 {[%clk 0:00:23.9]}
18. Ba5 {[%clk 0:01:46.2]} 1-0

[Event "Late-Titled-Tuesday-Blitz-April-23-2024"]
[Site "Chess.com"]
[Date "2024.04.23"]
[Round "6"]
[White "DominguezOnYoutube"]
[Black "ellatambien"]
[Result "1-0"]
[WhiteElo "2962"]
[BlackElo "2723"]
[TimeControl "180+1"]
[EndTime "15:06:00 PDT"]
[Termination "DominguezOnYoutube won by resignation"]

1. e4 {[%clk 0:03:00.9]} 1... e5 {[%clk 0:03:00]} 2. Nf3 {[%clk 0:03:00.2]} 2...
Nc6 {[%clk 0:03:00.5]} 3. Bb5 {[%clk 0:02:59.2]} 3... a6 {[%clk 0:03:01]} 4. Ba4
{[%clk 0:02:58.9]} 4... Nf6 {[%clk 0:03:01.4]} 5. O-O {[%clk 0:02:59]} 5... Bc5
{[%clk 0:03:01.8]} 6. c3 {[%clk 0:02:57.9]} 6... b5 {[%clk 0:03:02.3]} 7. Bb3
{[%clk 0:02:58.3]} 7... d6 {[%clk 0:03:02.7]} 8. d4 {[%clk 0:02:54.2]} 8... Bb6
{[%clk 0:03:02.6]} 9. Re1 {[%clk 0:02:53.6]} 9... O-O {[%clk 0:03:01.7]} 10. Bg5
{[%clk 0:02:51.9]} 10... h6 {[%clk 0:03:01.6]} 11. Bh4 {[%clk 0:02:49.5]} 11...
g5 {[%clk 0:03:01.5]} 12. Nxg5 {[%clk 0:02:41.7]} 12... hxg5 {[%clk 0:03:02.4]}
13. Bxg5 {[%clk 0:02:41.9]} 13... exd4 {[%clk 0:03:02.8]} 14. Bd5 {[%clk
0:02:36.8]} 14... Bd7 {[%clk 0:02:43.1]} 15. cxd4 {[%clk 0:02:36.4]} 15... Rb8
{[%clk 0:02:27.8]} 16. Bxc6 {[%clk 0:01:58.6]} 16... Bxc6 {[%clk 0:02:25.4]} 17.
Re3 {[%clk 0:01:59]} 17... Kg7 {[%clk 0:02:07.8]} 18. Rf3 {[%clk 0:01:49.1]}
18... Bxe4 {[%clk 0:02:05.4]} 19. Bxf6+ {[%clk 0:01:48.3]} 19... Qxf6 {[%clk
0:02:05.6]} 20. Rxf6 {[%clk 0:01:48.1]} 20... Kxf6 {[%clk 0:02:06.2]} 21. Nc3
{[%clk 0:01:47.8]} 21... Bg6 {[%clk 0:02:04.1]} 22. Nd5+ {[%clk 0:01:45.4]}
22... Kg7 {[%clk 0:02:04.2]} 23. Nxb6 {[%clk 0:01:45.4]} 23... Rxb6 {[%clk
0:02:04.8]} 24. Rc1 {[%clk 0:01:45.4]} 24... c6 {[%clk 0:01:55]} 25. d5 {[%clk
0:01:45.2]} 25... c5 {[%clk 0:01:53.8]} 26. b4 {[%clk 0:01:45.8]} 26... Rb7
{[%clk 0:01:20.7]} 27. bxc5 {[%clk 0:01:44.7]} 27... dxc5 {[%clk 0:01:21.6]} 28.
Rxc5 {[%clk 0:01:44.5]} 28... Rd7 {[%clk 0:01:21.4]} 29. Qd4+ {[%clk 0:01:43.2]}
29... f6 {[%clk 0:01:21.7]} 30. d6 {[%clk 0:01:32.9]} 30... Re8 {[%clk
0:01:21.8]} 31. f3 {[%clk 0:01:26]} 1-0

[Event "Late-Titled-Tuesday-Blitz-April-23-2024"]
[Site "Chess.com"]
[Date "2024.04.23"]
[Round "6"]
[White "Sanyura"]
[Black "VojtechPlat"]
[Result "0-1"]
[WhiteElo "2642"]
[BlackElo "2872"]
[TimeControl "180+1"]
[EndTime "15:06:04 PDT"]
[Termination "VojtechPlat won on time"]

1. e4 {[%clk 0:03:00.9]} 1... d6 {[%clk 0:02:59.8]} 2. d4 {[%clk 0:03:00.2]}
2... Nf6 {[%clk 0:03:00.7]} 3. Nc3 {[%clk 0:03:00]} 3... e5 {[%clk 0:03:01.1]}
4. Nf3 {[%clk 0:02:59.9]} 4... exd4 {[%clk 0:03:01]} 5. Nxd4 {[%clk 0:03:00.3]}
5... Be7 {[%clk 0:03:00.7]} 6. g3 {[%clk 0:02:57.7]} 6... d5 {[%clk 0:03:00.8]}
7. e5 {[%clk 0:02:44]} 7... Ng4 {[%clk 0:03:00.8]} 8. Bg2 {[%clk 0:02:42]} 8...
Nxe5 {[%clk 0:02:59.8]} 9. Nxd5 {[%clk 0:02:41.1]} 9... Bg4 {[%clk 0:02:51.5]}
10. Qd2 {[%clk 0:02:12.5]} 10... Bh3 {[%clk 0:02:51.4]} 11. Be4 {[%clk
0:01:16.6]} 11... O-O {[%clk 0:02:47.2]} 12. f4 {[%clk 0:00:34]} 12... Nc4
{[%clk 0:02:42.2]} 13. Qe2 {[%clk 0:00:33.4]} 13... Nd6 {[%clk 0:02:41.3]} 14.
Nxe7+ {[%clk 0:00:32.9]} 14... Kh8 {[%clk 0:02:35.9]} 15. Bd3 {[%clk 0:00:22.3]}
15... Re8 {[%clk 0:02:33.9]} 16. Qh5 {[%clk 0:00:21]} 16... Qxe7+ {[%clk
0:02:27.1]} 17. Kf2 {[%clk 0:00:19.2]} 17... Ne4+ {[%clk 0:02:24.7]} 18. Kg1
{[%clk 0:00:13.1]} 18... Bd7 {[%clk 0:02:13.8]} 19. Be3 {[%clk 0:00:10.3]} 19...
Nc6 {[%clk 0:02:12.1]} 20. Re1 {[%clk 0:00:09.1]} 20... Nf6 {[%clk 0:02:11.9]}
21. Nxc6 {[%clk 0:00:04.8]} 21... Bxc6 {[%clk 0:02:12]} 22. Qh4 {[%clk
0:00:03.8]} 22... Qb4 {[%clk 0:02:11.2]} 23. Kf2 {[%clk 0:00:02.4]} 23... Bxh1
{[%clk 0:02:08.4]} 24. Rxh1 {[%clk 0:00:03.3]} 24... Rxe3 {[%clk 0:02:06.4]} 25.
Kxe3 {[%clk 0:00:03.4]} 25... Re8+ {[%clk 0:02:05.4]} 26. Kf2 {[%clk 0:00:03.1]}
26... Qd2+ {[%clk 0:02:04.7]} 0-1

[Event "Late-Titled-Tuesday-Blitz-April-23-2024"]
[Site "Chess.com"]
[Date "2024.04.23"]
[Round "6"]
[White "chedimir"]
[Black "LUISMIGUELOV"]
[Result "1-0"]
[WhiteElo "2468"]
[BlackElo "2221"]
[TimeControl "180+1"]
[EndTime "15:06:06 PDT"]
[Termination "chedimir won by checkmate"]

1. e4 {[%clk 0:03:00.3]} 1... c6 {[%clk 0:02:57.2]} 2. d4 {[%clk 0:02:59.4]}
2... d5 {[%clk 0:02:56.7]} 3. e5 {[%clk 0:02:59.3]} 3... c5 {[%clk 0:02:56]} 4.
dxc5 {[%clk 0:02:58.7]} 4... Nc6 {[%clk 0:02:55.7]} 5. Bf4 {[%clk 0:02:57.4]}
5... e6 {[%clk 0:02:50.6]} 6. Nf3 {[%clk 0:02:56.3]} 6... Bxc5 {[%clk
0:02:49.2]} 7. Bd3 {[%clk 0:02:55.9]} 7... Nge7 {[%clk 0:02:47.4]} 8. a3 {[%clk
0:02:55.4]} 8... Ng6 {[%clk 0:02:41.8]} 9. Bg3 {[%clk 0:02:52.9]} 9... Qc7
{[%clk 0:02:41.3]} 10. O-O {[%clk 0:02:45.5]} 10... Bd7 {[%clk 0:02:37.7]} 11.
Qe2 {[%clk 0:02:43.4]} 11... a6 {[%clk 0:02:35.7]} 12. Nbd2 {[%clk 0:02:40.4]}
12... Nd4 {[%clk 0:02:29]} 13. Nxd4 {[%clk 0:02:39.6]} 13... Bxd4 {[%clk
0:02:29]} 14. c4 {[%clk 0:02:37.8]} 14... Bxb2 {[%clk 0:02:09.1]} 15. Rab1
{[%clk 0:02:19.8]} 15... Bxe5 {[%clk 0:02:08.6]} 16. Bxg6 {[%clk 0:02:16.6]}
16... Bxg3 {[%clk 0:02:07.5]} 17. Bxf7+ {[%clk 0:02:16.1]} 17... Kxf7 {[%clk
0:02:05]} 18. fxg3+ {[%clk 0:02:16]} 18... Kg8 {[%clk 0:01:49.1]} 19. cxd5
{[%clk 0:02:13.8]} 19... exd5 {[%clk 0:01:39.8]} 20. Qe7 {[%clk 0:02:11.3]}
20... h6 {[%clk 0:00:35.9]} 21. Rf7 {[%clk 0:02:04.7]} 21... Rh7 {[%clk
0:00:25.3]} 22. Rbf1 {[%clk 0:01:50.3]} 22... Qb6+ {[%clk 0:00:21]} 23. Kh1
{[%clk 0:01:48.8]} 23... Bc6 {[%clk 0:00:14.9]} 24. Qf8+ {[%clk 0:01:43.9]}
24... Rxf8 {[%clk 0:00:11.4]} 25. Rxf8# {[%clk 0:01:42.9]} 1-0

[Event "Late-Titled-Tuesday-Blitz-April-23-2024"]
[Site "Chess.com"]
[Date "2024.04.23"]
[Round "6"]
[White "carloseduar100"]
[Black "Heliosis11"]
[Result "0-1"]
[WhiteElo "2200"]
[BlackElo "2399"]
[TimeControl "180+1"]
[EndTime "15:06:23 PDT"]
[Termination "Heliosis11 won on time"]

1. g3 {[%clk 0:02:51.1]} 1... Nf6 {[%clk 0:02:56.8]} 2. Bg2 {[%clk 0:02:39.3]}
2... d5 {[%clk 0:02:57.4]} 3. Nf3 {[%clk 0:02:39.3]} 3... c5 {[%clk 0:02:51.6]}
4. O-O {[%clk 0:02:40.2]} 4... Nc6 {[%clk 0:02:52.2]} 5. d4 {[%clk 0:02:40.2]}
5... cxd4 {[%clk 0:02:51.2]} 6. Nxd4 {[%clk 0:02:40]} 6... e6 {[%clk 0:02:51.7]}
7. Re1 {[%clk 0:02:36]} 7... Be7 {[%clk 0:02:48.2]} 8. Nxc6 {[%clk 0:02:35.5]}
8... bxc6 {[%clk 0:02:48.4]} 9. c4 {[%clk 0:02:35.4]} 9... O-O {[%clk
0:02:48.4]} 10. cxd5 {[%clk 0:02:35.6]} 10... cxd5 {[%clk 0:02:48.7]} 11. Nc3
{[%clk 0:02:34.6]} 11... Bb7 {[%clk 0:02:45.2]} 12. Bg5 {[%clk 0:02:33.2]} 12...
h6 {[%clk 0:02:45.2]} 13. Bxf6 {[%clk 0:02:33]} 13... Bxf6 {[%clk 0:02:46.1]}
14. e4 {[%clk 0:02:31.2]} 14... d4 {[%clk 0:02:39.5]} 15. Ne2 {[%clk 0:02:10.7]}
15... e5 {[%clk 0:02:36.2]} 16. Nc1 {[%clk 0:02:09.1]} 16... Ba6 {[%clk
0:02:36]} 17. Nd3 {[%clk 0:02:08.7]} 17... Rc8 {[%clk 0:02:35.5]} 18. Nb4 {[%clk
0:02:05.6]} 18... Bb7 {[%clk 0:02:33.8]} 19. Nd5 {[%clk 0:02:05.4]} 19... Bc6
{[%clk 0:02:25.1]} 20. Rc1 {[%clk 0:01:53.5]} 20... Qd6 {[%clk 0:02:21.8]} 21.
Qb3 {[%clk 0:01:25.5]} 21... Rb8 {[%clk 0:02:20.2]} 22. Qc2 {[%clk 0:01:19]}
22... Rfc8 {[%clk 0:02:18.8]} 23. Qd2 {[%clk 0:00:13]} 23... Bxd5 {[%clk
0:02:06.5]} 24. exd5 {[%clk 0:00:12.1]} 24... Bg5 {[%clk 0:02:06.6]} 25. Rxc8+
{[%clk 0:00:03.7]} 25... Rxc8 {[%clk 0:02:05.9]} 26. Qe2 {[%clk 0:00:04.6]}
26... Bf6 {[%clk 0:02:02.8]} 27. b3 {[%clk 0:00:03.6]} 27... Rc3 {[%clk
0:01:59]} 28. h4 {[%clk 0:00:04.2]} 28... Qc5 {[%clk 0:01:58.7]} 29. Qg4 {[%clk
0:00:04.3]} 29... d3 {[%clk 0:01:57.1]} 30. Rd1 {[%clk 0:00:04]} 30... Rc2
{[%clk 0:01:55.3]} 31. a4 {[%clk 0:00:03.4]} 31... Qxf2+ {[%clk 0:01:55.3]} 0-1

[Event "Late-Titled-Tuesday-Blitz-April-23-2024"]
[Site "Chess.com"]
[Date "2024.04.23"]
[Round "6"]
[White "artin10862"]
[Black "MagnusCarlsen"]
[Result "0-1"]
[WhiteElo "2936"]
[BlackElo "3227"]
[TimeControl "180+1"]
[EndTime "15:06:29 PDT"]
[Termination "MagnusCarlsen won by resignation"]

1. c4 {[%clk 0:03:00.9]} 1... e5 {[%clk 0:02:58.3]} 2. Nc3 {[%clk 0:02:57.1]}
2... Bb4 {[%clk 0:02:57.9]} 3. Nd5 {[%clk 0:02:53.4]} 3... Na6 {[%clk
0:02:58.1]} 4. e3 {[%clk 0:02:41.9]} 4... Nf6 {[%clk 0:02:54.7]} 5. Nxb4 {[%clk
0:02:39.9]} 5... Nxb4 {[%clk 0:02:54.6]} 6. a3 {[%clk 0:02:40.6]} 6... Nc6
{[%clk 0:02:54.8]} 7. b4 {[%clk 0:02:40.5]} 7... d5 {[%clk 0:02:55.2]} 8. cxd5
{[%clk 0:02:40.2]} 8... Qxd5 {[%clk 0:02:54.5]} 9. Bb2 {[%clk 0:02:39.5]} 9...
O-O {[%clk 0:02:53.4]} 10. Nf3 {[%clk 0:02:28]} 10... Bg4 {[%clk 0:02:52.2]} 11.
h3 {[%clk 0:02:13.6]} 11... Bxf3 {[%clk 0:02:51.2]} 12. gxf3 {[%clk 0:02:07.4]}
12... Ne7 {[%clk 0:02:50.5]} 13. Rc1 {[%clk 0:02:05.7]} 13... Qd6 {[%clk
0:02:49.2]} 14. Bc4 {[%clk 0:01:58.5]} 14... Ng6 {[%clk 0:02:48.8]} 15. h4
{[%clk 0:01:51.7]} 15... h5 {[%clk 0:02:48.5]} 16. Qc2 {[%clk 0:01:47]} 16...
Kh7 {[%clk 0:02:46.9]} 17. Rg1 {[%clk 0:01:43.2]} 17... Kh8 {[%clk 0:02:26.6]}
18. Rh1 {[%clk 0:01:28]} 18... c5 {[%clk 0:02:12.7]} 19. bxc5 {[%clk 0:01:13.6]}
19... Qxc5 {[%clk 0:02:09]} 20. Bd3 {[%clk 0:01:12.5]} 20... Qd5 {[%clk
0:02:04]} 21. Bxg6 {[%clk 0:01:11.9]} 21... fxg6 {[%clk 0:01:48.7]} 22. Qxg6
{[%clk 0:01:12.8]} 22... Rad8 {[%clk 0:01:44.8]} 23. d3 {[%clk 0:00:49.7]} 23...
Qxf3 {[%clk 0:01:34.7]} 24. Rg1 {[%clk 0:00:49.6]} 24... Ng4 {[%clk 0:01:34.7]}
25. Rc7 {[%clk 0:00:21.6]} 25... Qxf2+ {[%clk 0:01:32.1]} 26. Kd1 {[%clk
0:00:21.8]} 26... Qxg1+ {[%clk 0:01:24.4]} 0-1

[Event "Late-Titled-Tuesday-Blitz-April-23-2024"]
[Site "Chess.com"]
[Date "2024.04.23"]
[Round "6"]
[White "bascheyaro"]
[Black "mjelcic"]
[Result "1-0"]
[WhiteElo "2814"]
[BlackElo "2388"]
[TimeControl "180+1"]
[EndTime "15:06:29 PDT"]
[Termination "bascheyaro won by resignation"]

1. d4 {[%clk 0:03:00.9]} 1... d5 {[%clk 0:02:59.7]} 2. Nf3 {[%clk 0:03:00.9]}
2... Nf6 {[%clk 0:02:59.5]} 3. Bf4 {[%clk 0:03:01.2]} 3... c5 {[%clk 0:02:52.6]}
4. e3 {[%clk 0:03:01.4]} 4... Nc6 {[%clk 0:02:52]} 5. a3 {[%clk 0:03:01]} 5...
Qb6 {[%clk 0:02:46.4]} 6. Nc3 {[%clk 0:03:00.8]} 6... Bg4 {[%clk 0:02:24.8]} 7.
Nb5 {[%clk 0:02:56.7]} 7... Rc8 {[%clk 0:02:23.4]} 8. Bc7 {[%clk 0:02:43.2]}
8... Rxc7 {[%clk 0:02:05.1]} 9. dxc5 {[%clk 0:02:43.2]} 9... Qxc5 {[%clk
0:01:54.4]} 10. Nxc7+ {[%clk 0:02:42.9]} 10... Kd7 {[%clk 0:01:54.1]} 11. Nb5
{[%clk 0:02:37.1]} 11... e6 {[%clk 0:01:49.6]} 12. c4 {[%clk 0:02:33.2]} 12...
Be7 {[%clk 0:01:42.9]} 13. b4 {[%clk 0:02:10.8]} 13... Nxb4 {[%clk 0:01:35]} 14.
axb4 {[%clk 0:02:06.3]} 14... Qxb4+ {[%clk 0:01:35.9]} 15. Qd2 {[%clk
0:02:03.7]} 15... Qb3 {[%clk 0:01:31.6]} 16. Nfd4 {[%clk 0:01:34.8]} 16... Qb4
{[%clk 0:01:31.3]} 17. f3 {[%clk 0:01:32.1]} 17... Bh5 {[%clk 0:01:19.4]} 18.
Rxa7 {[%clk 0:01:19.7]} 18... Rc8 {[%clk 0:01:09.4]} 19. Rxb7+ {[%clk
0:01:10.5]} 19... Kd8 {[%clk 0:01:09.7]} 20. Qxb4 {[%clk 0:01:06.5]} 20... Bxb4+
{[%clk 0:01:10.6]} 21. Kf2 {[%clk 0:01:07]} 21... dxc4 {[%clk 0:01:06.1]} 22.
Na7 {[%clk 0:01:06.9]} 22... Rc5 {[%clk 0:00:37.7]} 23. Rxb4 {[%clk 0:01:06.5]}
23... c3 {[%clk 0:00:34.2]} 24. Rc4 {[%clk 0:01:05.5]} 24... Ra5 {[%clk
0:00:29.7]} 25. Nac6+ {[%clk 0:01:05.3]} 1-0